bitfinex/quotes_ETHUSD_20260126
["timestamp","ask_amount","ask_price","bid_price","bid_amount"]
[1769429527640,0.002,2902.6,2902.1,15.27379724]
[1769429527814,0.002,2903.1,2902.4,13.72933708]
[1769429528143,0.002,2903.1,2902.1,16.13523829]
[1769429528506,0.002,2903.1,2902.2,0.03445661]
[1769429528946,0.002,2903.1,2902.2,13.76379369]
[1769429529252,0.002,2903.1,2902.3,15.19186049]
[1769429529757,0.002,2903.1,2902.3,16.05322822]
[1769429529965,0.002,2903.1,2902.3,16.05324175]
[1769429530319,0.002,2903.1,2902.3,16.05324521]
[1769429530519,0.002,2903.1,2902.3,15.19186049]
[1769429530720,0.002,2903.1,2902.5,13.72933708]
[1769429531234,0.002,2903.1,2902.4,1.54102938]
[1769429531622,0.002,2903.1,2902.4,15.27036646]
[1769429534226,0.002,2903.1,2902.4,16.13172165]
[1769429534426,0.002,2903.1,2902.4,15.27036646]
[1769429534628,0.002,2903.1,2902.6,13.72933708]
[1769429535337,13.41539305,2903.1,2902.1,13.72933708]
[1769429537355,13.41339305,2903.0,2902.0,0.001]
[1769429537595,13.41339305,2902.8,2902.0,0.001]
[1769429538162,1.75782713,2902.9,2902.0,13.28232327]
[1769429538376,14.71512738,2903.1,2902.0,13.28232327]
[1769429540452,13.99312738,2903.1,2902.0,14.14379205]
[1769429540644,13.99312738,2903.1,2902.0,14.1437896]
[1769429540841,13.99312738,2903.1,2902.1,13.58375553]
[1769429541068,15.46484012,2903.1,2902.1,14.99391992]
[1769429541576,0.002,2902.9,2902.1,14.99391992]
[1769429542262,0.002,2902.9,2902.2,0.03445661]
[1769429543153,0.002,2902.9,2902.2,13.58375434]
[1769429543353,0.002,2902.9,2902.2,13.54929773]
[1769429546288,12.62515714,2902.8,2902.0,0.001]
[1769429546449,12.62515714,2902.5,2901.4,13.55029773]
[1769429547079,12.62515714,2902.5,2901.5,0.03446493]
[1769429547487,4.16001461,2902.6,2901.5,0.03446493]
[1769429547488,0.722,2902.6,2901.5,13.58376266]
[1769429547675,12.62515714,2902.8,2901.7,13.54929773]
[1769429549086,12.62515714,2902.8,2901.8,13.58375909]
[1769429549276,12.62515714,2902.8,2901.8,13.54929773]
[1769429550857,1.40151274,2902.9,2901.8,13.54929773]
[1769429551055,1.40151274,2902.9,2902.0,13.54929773]
[1769429551056,14.02666988,2902.9,2902.0,13.54929773]
[1769429551257,1.47486699,2902.8,2902.1,0.0344578]
[1769429553390,1.47486699,2902.8,2902.0,13.54929773]
[1769429553590,12.62515714,2902.4,2901.2,13.54929773]
[1769429553776,12.62515714,2902.4,2901.2,14.41098367]
[1769429554085,12.62515714,2902.1,2900.9,13.54929773]
[1769429554402,14.30367432,2902.0,2901.0,0.86175565]
[1769429555401,14.30367432,2902.0,2900.9,13.54929773]
[1769429556081,14.30367432,2902.0,2900.9,14.41109299]
[1769429556515,14.30367432,2902.0,2900.9,13.54929773]
[1769429556809,14.30367432,2902.0,2900.9,14.41109917]
[1769429557008,14.30367432,2902.0,2901.0,1.78583322]
[1769429560018,14.30367432,2902.0,2900.9,13.54929773]
[1769429560423,14.30367432,2902.0,2900.9,14.41108491]
[1769429560587,14.30367432,2902.0,2901.0,0.86176465]
[1769429560926,14.30367432,2902.0,2901.0,14.41106238]
[1769429561092,14.30367432,2902.0,2901.0,13.54929773]
[1769429561393,1.43036743,2901.9,2901.0,13.54929773]
[1769429561989,1.43036743,2901.9,2901.0,14.41106753]
[1769429562523,1.43036743,2901.9,2901.0,13.54929773]
[1769429564815,14.05552457,2901.9,2901.0,13.54929773]
[1769429565119,14.05552457,2901.9,2900.8,14.41112802]
[1769429565326,14.0307096,2901.8,2900.8,16.19709571]
[1769429565493,14.0307096,2901.8,2901.2,0.001]
[1769429566325,14.0327096,2901.8,2901.2,0.001]
[1769429570199,1.40755246,2901.8,2901.2,0.001]
[1769429571931,13.39239968,2901.7,2901.2,0.001]
[1769429572119,14.87239489,2901.7,2901.2,0.001]
[1769429574710,1.47999521,2901.7,2901.2,0.001]
[1769429575808,0.002,2901.8,2901.2,0.001]
[1769429578241,0.002,2901.8,2901.2,14.07490919]
[1769429578453,0.002,2901.8,2901.4,0.001]
[1769429578746,0.002,2901.6,2901.4,0.001]
[1769429583134,13.39239968,2902.7,2901.5,13.2121968]
[1769429583337,0.128,2902.6,2901.5,14.61968257]
[1769429583554,6.35,2902.7,2901.5,14.61968257]
[1769429584326,19.74239968,2902.7,2901.5,14.61968257]
[1769429584833,19.74239968,2902.7,2901.6,14.0737904]
[1769429584834,13.39239968,2902.6,2901.6,14.0737904]
[1769429585035,6.35,2902.7,2901.8,13.2121968]
[1769429585945,19.74239968,2902.7,2901.8,13.2121968]
[1769429586948,19.74239968,2902.7,2901.9,0.89594281]
[1769429587142,13.39239968,2902.7,2901.9,0.89594281]
[1769429587830,1.47486699,2902.8,2901.9,14.10813961]
[1769429588029,1.47486699,2902.8,2901.9,15.82910507]
[1769429591365,1.47486699,2902.8,2902.0,0.001]
[1769429591565,0.002,2902.6,2902.0,13.2131968]
[1769429593684,0.002,2902.6,2902.1,0.86144516]
[1769429597780,13.02005165,2902.6,2902.0,0.001]
[1769429598271,0.002,2902.6,2902.0,0.001]
[1769429600450,0.002,2902.6,2902.0,0.03545899]
[1769429604293,0.002,2902.4,2902.0,0.89693002]
[1769429605860,0.002,2902.4,2902.0,2.6036552]
[1769429607300,0.002,2902.4,2902.0,15.32792692]
[1769429607457,0.002,2902.6,2902.1,12.72427172]
[1769429608385,0.002,2902.6,2902.2,12.73921787]
[1769429608688,0.002,2902.6,2902.3,12.73921735]
[1769429608881,0.002,2902.6,2902.4,0.86135611]
[1769429611906,0.002,2902.6,2902.3,14.85956087]
[1769429612207,13.5081704,2903.2,2902.3,14.85956087]
[1769429612208,13.5061704,2903.7,2902.6,12.72427172]
[1769429612596,13.5061704,2903.9,2902.6,12.72427172]
[1769429612910,13.5061704,2903.9,2902.8,12.72427172]
[1769429613210,13.5061704,2903.9,2902.9,14.0828256]
[1769429615173,13.5061704,2903.9,2903.0,13.58544981]
[1769429619406,0.0008,2904.2,2903.0,13.58544981]
[1769429619738,0.03525795,2904.2,2903.0,13.58544981]
[1769429619943,13.54142835,2904.2,2903.0,13.58544981]
[1769429620099,13.5061704,2904.1,2903.0,13.58544981]
[1769429620300,13.5061704,2903.9,2903.0,13.58544981]
[1769429623500,13.5061704,2904.1,2903.0,13.58544981]
[1769429625128,4.16162811,2904.4,2903.1,12.72427172]
[1769429625331,15.27315025,2904.3,2903.2,0.37107717]
[1769429625508,1.76697985,2904.3,2903.3,13.58536082]
[1769429625714,0.03645795,2904.5,2903.3,12.72427172]
[1769429626103,13.54262835,2904.5,2903.3,12.72427172]
[1769429626434,13.5081704,2904.5,2903.4,12.72427172]
[1769429627237,0.002,2904.5,2903.7,12.72427172]
[1769429627607,0.002,2904.5,2903.9,12.72427172]
[1769429627807,0.002,2904.5,2904.0,13.99819346]
[1769429629624,0.002,2904.5,2904.1,13.569916]
[1769429629819,0.002,2904.3,2904.1,13.569916]
[1769429630226,0.002,2904.5,2904.1,13.569916]
[1769429631629,0.002,2904.5,2904.2,0.86082225]
[1769429631829,0.002,2904.5,2904.3,1.35855388]
[1769429632626,12.76050016,2905.2,2904.3,1.35855388]
[1769429632938,12.76050016,2905.2,2904.3,14.92846988]
[1769429633937,0.0200587,2905.3,2904.4,14.43067898]
[1769429634310,12.78055886,2905.3,2904.4,14.43067898]
[1769429634510,12.78055886,2905.3,2904.5,0.37107717]
[1769429634740,12.78055886,2905.3,2904.5,13.94099317]
[1769429634941,0.0200587,2905.3,2904.5,13.94099317]
[1769429635149,0.0200587,2905.3,2904.9,13.569916]
[1769429635350,0.0200587,2905.3,2904.5,13.94099317]
[1769429635517,0.0200587,2905.3,2904.6,14.84383774]
[1769429635864,0.0200587,2905.3,2904.8,13.569916]
[1769429637569,0.002,2905.7,2904.7,0.86067407]
[1769429637746,12.76250016,2905.7,2904.7,14.46166044]
[1769429637912,12.76250016,2905.7,2904.8,1.79043853]
[1769429638113,12.76250016,2905.7,2904.8,1.8215089]
[1769429638312,12.76250016,2905.7,2904.8,1.79043853]
[1769429639818,12.76250016,2905.7,2904.8,2.65107653]
[1769429640023,12.76250016,2905.7,2904.9,0.84203709]
[1769429640253,12.76250016,2905.7,2905.0,17.73154411]
[1769429640254,0.002,2905.7,2905.0,17.73154411]
[1769429640425,0.002,2905.7,2905.1,13.60098637]
[1769429640620,0.002,2905.7,2905.1,13.569916]
[1769429640820,0.002,2905.7,2905.2,13.94099317]
[1769429641843,0.002,2905.5,2905.2,13.94099317]
[1769429643246,12.76050016,2906.3,2905.4,13.569916]
[1769429643962,12.76050016,2906.6,2905.4,13.569916]
[1769429644267,12.76050016,2906.5,2905.5,13.60098637]
[1769429644459,12.76050016,2906.5,2905.6,1.36009864]
[1769429644663,12.76050016,2906.5,2905.6,14.93001464]
[1769429645273,12.76250016,2906.9,2905.7,13.60098637]
[1769429647386,12.76250016,2906.9,2905.7,13.55098637]
[1769429648280,12.76250016,2906.9,2905.9,13.569916]
[1769429648446,12.76250016,2906.9,2905.9,14.00025589]
[1769429648447,14.03875018,2906.9,2905.9,14.00025589]
[1769429648644,14.03875018,2906.9,2905.6,8.96335606]
[1769429648645,12.76050016,2906.7,2905.6,14.93001464]
[1769429648851,12.76050016,2906.7,2905.6,15.7904189]
[1769429649052,12.76050016,2906.7,2905.7,0.86037162]
[1769429649264,12.76050016,2906.7,2905.7,13.569916]
[1769429649777,12.76050016,2906.7,2905.4,14.43036057]
[1769429649957,12.76050016,2906.5,2905.5,1.79033862]
[1769429650158,12.76050016,2906.5,2905.5,2.65077223]
[1769429650383,12.76050016,2906.5,2905.5,14.43034961]
[1769429650888,14.03875018,2906.9,2905.9,13.569916]
[1769429651185,14.03875018,2906.9,2906.1,13.569916]
[1769429651186,0.002,2906.9,2906.1,13.569916]
[1769429651888,0.002,2906.9,2906.0,13.60098637]
[1769429652255,3.43915457,2907.7,2906.0,13.60098637]
[1769429652256,12.76050016,2908.5,2907.3,13.60098637]
[1769429652455,12.76050016,2908.5,2907.3,13.569916]
[1769429652657,12.76050016,2908.5,2907.4,0.03107037]
[1769429652964,12.76050016,2908.5,2907.4,13.569916]
[1769429653275,14.03655018,2908.5,2907.6,0.03107037]
[1769429653473,12.76050016,2908.5,2907.5,1.27237698]
[1769429653788,0.002,2908.3,2907.6,0.03107037]
[1769429653993,12.76050016,2909.2,2908.1,4.16162811]
[1769429654298,12.76050016,2909.5,2908.1,0.03107037]
[1769429654590,12.76050016,2909.3,2908.1,0.03107037]
[1769429654979,12.76050016,2909.3,2908.1,13.569916]
[1769429655181,0.002,2909.7,2909.0,17.76261448]
[1769429655387,12.76250016,2909.7,2908.2,13.569916]
[1769429655585,14.45291299,2909.6,2908.3,0.37107717]
[1769429655896,15.17391299,2909.6,2908.3,0.37107717]
[1769429656268,15.31214572,2909.6,2908.3,13.94099317]
[1769429656482,15.31214911,2909.6,2908.3,13.94099317]
[1769429658276,12.8249759,2909.5,2908.3,13.94099317]
[1769429658476,1.60976248,2909.4,2908.3,13.94099317]
[1769429658980,1.60976248,2909.4,2908.4,0.03107037]
[1769429659487,1.60976248,2909.4,2908.3,13.94099317]
[1769429659681,1.60976248,2909.4,2908.3,13.97206354]
[1769429660007,14.07466717,2909.4,2908.3,13.94099317]
[1769429660205,1.40746672,2909.3,2908.3,13.94099317]
[1769429660509,1.40746672,2909.3,2908.1,13.42594118]
[1769429660510,13.87237141,2909.3,2908.1,13.42594118]
[1769429660900,13.87237141,2909.3,2908.0,14.25456575]
[1769429661076,13.87237141,2909.3,2908.2,13.42594118]
[1769429661278,13.87237141,2909.3,2908.4,0.03107037]
[1769429661502,1.40746672,2909.3,2908.3,13.39487081]
[1769429661804,0.721,2909.4,2908.4,1.73117581]
[1769429662011,13.18590469,2909.5,2908.4,1.73117581]
[1769429662385,0.002,2909.7,2908.5,13.42594118]
[1769429662584,14.04710568,2909.7,2908.5,13.42594118]
[1769429662785,1.40471057,2909.6,2908.5,14.69831816]
[1769429663004,13.86961526,2909.6,2908.5,14.69831816]
[1769429663200,13.86961526,2909.6,2908.3,13.42594118]
[1769429663404,14.59061526,2909.6,2908.3,13.42594118]
[1769429663778,14.59061526,2909.6,2908.3,13.39487081]
[1769429663979,12.46490469,2909.5,2908.2,13.39487081]
[1769429664276,12.46490469,2909.5,2908.3,0.03107037]
[1769429664472,1.87522434,2909.4,2908.3,0.03107037]
[1769429665406,1.87522434,2909.4,2908.3,13.42594118]
[1769429665608,1.87722434,2909.4,2908.3,13.42594118]
[1769429665811,0.72,2909.3,2908.3,13.42594118]
[1769429666007,13.18690469,2909.4,2908.3,13.42594118]
[1769429666212,12.46690469,2909.4,2908.3,13.42594118]
[1769429666512,13.18690469,2909.4,2908.3,13.42594118]
[1769429666680,1.31869047,2909.3,2908.4,1.34259412]
[1769429666875,1.31869047,2909.3,2908.3,13.42594118]
[1769429667184,1.31869047,2909.3,2908.1,0.03107037]
[1769429667185,13.78359516,2909.3,2908.1,0.03107037]
[1769429667782,12.46490469,2909.2,2907.8,13.39487081]
[1769429667987,12.46490469,2909.2,2907.9,13.42594118]
[1769429668205,14.34348593,2909.1,2907.8,13.39487081]
[1769429668443,14.34348593,2909.1,2907.7,0.03107037]
[1769429668444,15.06348593,2909.1,2907.9,13.42594118]
[1769429669216,0.002,2909.4,2908.4,13.39487081]
[1769429669378,0.002,2909.4,2908.6,17.56883171]
[1769429669580,0.002,2909.4,2909.0,0.03107037]
[1769429670527,0.002,2909.6,2909.2,0.03107037]
[1769429670884,0.002,2909.6,2909.1,0.03107037]
[1769429671209,0.002,2909.6,2909.2,13.42594118]
[1769429672815,0.002,2909.6,2909.2,0.03107037]
[1769429673334,0.00197284,2910.0,2909.2,13.42594118]
[1769429673538,0.00197284,2910.0,2909.3,0.03107037]
[1769429674841,12.46687753,2910.0,2909.1,1.34570116]
[1769429675026,12.46687753,2910.0,2908.6,14.28545749]
[1769429675203,12.46687753,2910.0,2908.6,13.42594118]
[1769429675400,12.46687753,2910.0,2908.6,14.28545978]
[1769429675638,12.46490469,2909.6,2908.3,14.25446234]
[1769429675845,12.46490469,2909.6,2908.4,0.03438316]
[1769429676041,12.46490469,2909.6,2908.2,0.03438316]
[1769429676222,0.72,2909.9,2908.2,0.03438316]
[1769429676223,12.46490469,2909.4,2908.2,0.03438316]
[1769429676411,12.46490469,2909.4,2907.8,0.03438316]
[1769429676810,12.46490469,2909.4,2907.9,0.03107037]
[1769429677010,12.46490469,2909.4,2908.0,0.03438079]
[1769429677342,12.46490469,2909.2,2907.7,0.03107037]
[1769429677543,0.128,2909.3,2907.4,0.03107037]
[1769429677544,12.46490469,2908.8,2907.4,0.89093845]
[1769429677762,12.46490469,2908.8,2907.6,0.03107037]
[1769429677910,12.46490469,2908.8,2907.5,0.03107037]
[1769429678104,12.46490469,2908.8,2908.5,0.001]
[1769429679045,12.46490469,2908.8,2907.5,0.03107037]
[1769429679210,12.46490469,2908.6,2907.5,1.34570116]
[1769429679606,13.32445428,2908.5,2907.5,1.34570116]
[1769429679807,12.46490469,2908.5,2907.5,1.34570116]
[1769429680621,12.46490469,2908.5,2907.4,0.03107037]
[1769429681041,13.7973383,2908.7,2907.6,0.03107037]
[1769429681337,14.6568341,2908.7,2907.6,0.03107037]
[1769429681536,13.7973383,2908.7,2907.6,0.03107037]
[1769429683356,1.33243361,2908.7,2907.8,0.03107037]
[1769429683558,12.46490469,2909.0,2908.0,0.03107037]
[1769429683848,13.18490469,2909.0,2908.0,0.03107037]
[1769429684451,12.46490469,2909.0,2907.9,0.03107037]
[1769429684753,13.3243149,2909.0,2907.9,0.03107037]
[1769429684925,12.46490469,2909.0,2907.9,0.03107037]
[1769429685125,1.44441952,2908.9,2907.9,1.5082346]
[1769429686311,13.90932421,2908.9,2907.9,1.47716423]
[1769429689277,13.90932421,2908.9,2907.8,13.39487081]
[1769429689278,15.48875781,2908.9,2907.8,13.39487081]
[1769429689437,14.62932421,2908.9,2907.8,13.39487081]
[1769429689774,15.48876406,2908.9,2907.8,13.39487081]
[1769429690149,14.62932421,2908.9,2907.8,13.39487081]
[1769429690370,14.62932421,2908.9,2908.1,0.001]
[1769429690544,13.68518805,2908.8,2908.1,0.001]
[1769429693772,0.72,2908.7,2908.1,0.001]
[1769429693987,12.94225563,2908.7,2908.1,0.001]
[1769429694159,12.94225563,2908.7,2907.4,13.4998756]
[1769429694556,12.22225563,2908.7,2907.4,13.4998756]
[1769429694761,12.94225563,2908.7,2907.6,12.60894591]
[1769429694960,12.94225563,2908.7,2907.7,1.26400163]
[1769429694961,14.23648119,2908.7,2907.7,1.26400163]
[1769429696389,14.23648119,2908.7,2907.4,0.89092969]
[1769429696390,14.23648119,2908.7,2907.5,13.46876161]
[1769429696684,14.23648119,2908.7,2907.6,12.64333853]
[1769429696888,14.23648119,2908.7,2907.6,12.60894591]
[1769429699000,14.23648119,2908.7,2907.4,12.64001628]
[1769429699001,15.09598256,2908.7,2907.4,12.64001628]
[1769429699191,14.23648119,2908.7,2907.4,13.49988781]
[1769429699391,13.64590375,2908.6,2907.5,13.95893469]
[1769429701780,13.64590375,2908.6,2907.6,12.64001628]
[1769429701986,12.22225563,2909.0,2908.0,12.64001628]
[1769429702187,0.002,2908.7,2908.0,12.60894591]
[1769429704284,0.002,2908.7,2908.0,13.46864008]
[1769429704516,0.002,2908.7,2908.0,12.60894591]
[1769429704710,0.002,2908.7,2908.0,14.28614192]
[1769429705020,0.002,2908.7,2908.2,12.60894591]
[1769429706826,0.002,2909.5,2908.9,12.64001628]
[1769429707003,0.002,2909.5,2908.9,12.60894591]
[1769429707201,15.16086744,2911.8,2909.4,0.03107037]
[1769429707411,12.22225563,2911.2,2909.9,12.60894591]
[1769429707724,12.22225563,2910.9,2909.7,12.64001628]
[1769429707898,0.0200587,2911.0,2909.9,12.64001628]
[1769429708093,0.0200587,2911.0,2909.9,12.60894591]
[1769429708290,0.0200587,2911.0,2910.2,0.03107037]
[1769429708502,0.0200587,2911.0,2910.2,12.64001628]
[1769429708707,0.0200587,2911.0,2910.4,12.60894591]
[1769429708912,0.0200587,2911.0,2910.1,12.60894591]
[1769429709131,0.0200587,2911.0,2910.1,13.46801469]
[1769429710104,0.0200587,2911.0,2910.1,12.60894591]
[1769429710306,0.0200587,2911.0,2910.2,0.03107037]
[1769429710719,0.0200587,2911.0,2909.8,13.49916249]
[1769429710942,13.10113187,2911.0,2909.8,12.60894591]
[1769429711151,1.31011319,2910.9,2909.7,12.60894591]
[1769429711522,12.25671358,2910.8,2909.4,12.64001628]
[1769429711855,12.22225563,2910.8,2909.4,12.64001628]
[1769429712155,12.25671358,2910.7,2909.4,12.64001628]
[1769429712358,1.22567136,2910.6,2909.4,12.64001628]
[1769429712531,13.44792699,2910.6,2909.4,12.60894591]
[1769429713426,13.44792699,2910.6,2909.5,0.03107037]
[1769429714050,13.44792699,2910.6,2909.3,0.03107037]
[1769429714256,12.25671358,2910.5,2909.3,0.03107037]
[1769429714551,13.65638768,2910.4,2909.3,0.03107037]
[1769429715256,13.65838768,2910.4,2909.3,0.03107037]
[1769429716344,13.65838768,2910.4,2909.3,12.60894591]
[1769429716763,13.65838768,2910.4,2909.1,0.8904208]
[1769429716957,12.25671358,2910.3,2909.1,0.03107037]
[1769429717175,1.45518374,2910.2,2909.1,0.03107037]
[1769429718079,13.27828436,2910.2,2909.1,0.03107037]
[1769429718478,13.27828436,2910.2,2909.0,13.46834654]
[1769429718781,1.43613205,2910.4,2909.0,13.46834654]
[1769429718782,1.43613205,2910.4,2909.6,12.9673162]
[1769429718982,0.002,2910.4,2909.8,12.9673162]
[1769429719186,0.002,2910.4,2909.8,12.93624583]
[1769429720781,1.58176771,2911.2,2909.8,12.93624583]
[1769429720782,0.003,2911.2,2909.9,12.9673162]
[1769429720949,0.003,2911.2,2909.9,13.82642906]
[1769429721150,0.003,2911.2,2910.1,0.03107037]
[1769429721694,0.003,2911.2,2910.0,14.6625543]
[1769429721882,0.003,2911.2,2910.1,0.03107037]
[1769429722282,0.003,2911.2,2910.1,12.9673162]
[1769429722480,0.003,2911.2,2910.1,12.93624583]
[1769429722797,0.003,2911.2,2910.1,14.23712215]
[1769429723388,0.003,2911.2,2910.1,15.09619804]
[1769429723567,0.003,2911.2,2910.1,14.23712215]
[1769429726018,12.26580094,2910.9,2909.8,13.79539277]
[1769429726197,0.003,2911.2,2909.8,13.79539277]
[1769429726198,0.003,2911.2,2909.9,13.79537879]
[1769429726393,12.23134299,2911.1,2909.9,12.93624583]
[1769429726606,0.05451665,2911.0,2910.0,13.82641362]
[1769429726806,0.0200587,2911.0,2910.2,12.93624583]
[1769429727318,0.0088781,2911.0,2910.2,12.93624583]
[1769429727891,0.002,2910.8,2910.2,12.93624583]
[1769429728324,0.0108781,2910.8,2910.2,12.93624583]
[1769429729617,0.85866902,2911.5,2910.2,12.93624583]
[1769429729618,12.23334299,2912.2,2910.9,0.03107037]
[1769429729788,12.23334299,2912.2,2910.7,12.93624583]
[1769429729789,12.23634299,2911.8,2910.7,12.93624583]
[1769429729993,12.23634299,2911.8,2910.3,12.93624583]
[1769429730225,12.23634299,2911.8,2910.4,14.31888204]
[1769429730226,13.45497729,2911.7,2910.4,14.31888204]
[1769429730589,13.45497729,2911.7,2910.4,12.93624583]
[1769429731121,0.7236343,2911.7,2910.4,12.93624583]
[1769429731319,0.7236343,2911.7,2910.7,12.93624583]
[1769429732124,0.7236343,2911.7,2910.7,13.79514094]
[1769429732430,0.7236343,2911.7,2910.7,12.93624583]
[1769429733931,0.7236343,2911.7,2910.8,0.03107037]
[1769429734134,0.005,2911.8,2910.8,12.9673162]
[1769429735432,0.005,2911.8,2910.9,13.79508673]
[1769429735935,0.005,2911.8,2910.9,12.93624583]
[1769429737528,0.005,2911.8,2910.9,13.79507919]
[1769429737839,0.005,2911.8,2910.9,12.93624583]
[1769429738941,0.005,2911.8,2910.8,0.85886933]
[1769429738942,12.23634299,2911.8,2910.7,1.38262593]
[1769429739165,1.2236343,2911.7,2910.7,13.82619955]
[1769429739653,1.2236343,2911.7,2911.1,0.001]
[1769429740220,2.06650608,2913.3,2912.1,12.93624583]
[1769429740424,2.06650608,2913.3,2911.7,0.03107037]
[1769429740425,13.43971239,2913.3,2911.7,12.93624583]
[1769429740624,12.23134299,2913.1,2911.7,12.93624583]
[1769429742841,12.23134299,2913.1,2911.7,13.79484867]
[1769429744030,12.23134299,2913.1,2911.7,13.79484601]
[1769429749869,12.23134299,2913.1,2911.7,13.79484138]
[1769429750039,1.31579936,2913.0,2911.9,12.00287448]
[1769429750238,13.66239731,2913.0,2911.1,0.001]
[1769429750568,11.48834875,2912.8,2911.5,0.85864636]
[1769429750737,11.48834875,2912.8,2911.5,12.86152084]
[1769429751137,11.48834875,2912.8,2911.5,12.00287448]
[1769429751453,1.14903488,2912.7,2911.6,13.29213614]
[1769429752292,1.14903488,2912.7,2911.2,12.03394485]
[1769429752293,11.48834875,2912.6,2911.2,12.03394485]
[1769429752584,1.14903488,2912.7,2911.4,12.86156286]
[1769429753097,1.14903488,2912.7,2911.4,12.86156347]
[1769429753384,12.63738363,2912.7,2911.4,12.86156556]
[1769429753568,12.63738363,2912.7,2911.4,12.00287448]
[1769429753776,12.83791585,2912.6,2911.4,14.49432983]
[1769429753950,12.83791585,2912.6,2911.4,13.63563989]
[1769429754150,12.83791585,2912.6,2911.4,14.49433324]
[1769429754354,12.83791585,2912.6,2911.4,13.63563989]
[1769429755160,12.83791585,2912.6,2911.4,14.4943283]
[1769429755363,0.8602732,2912.9,2911.5,13.45230731]
[1769429755364,1.28379158,2912.5,2911.5,13.45230731]
[1769429755562,0.721,2912.9,2911.5,13.45230731]
[1769429755962,12.20934875,2912.9,2911.5,13.45230731]
[1769429756191,3.43481155,2913.1,2911.9,12.00287448]
[1769429756192,0.002,2913.1,2911.9,12.00287448]
[1769429756355,0.002,2913.1,2912.4,0.03107037]
[1769429756555,0.002,2913.1,2912.4,1.63571738]
[1769429757248,0.002,2913.1,2912.4,13.63859186]
[1769429757888,0.002,2913.1,2912.4,1.63571738]
[1769429758076,0.002,2913.1,2912.1,12.86135763]
[1769429758652,0.002,2913.1,2912.3,12.00287448]
[1769429759594,0.002,2913.1,2912.4,0.03107037]
[1769429759768,0.002,2913.1,2912.5,12.00287448]
[1769429759978,0.002,2913.1,2912.1,12.86135763]
[1769429760188,0.002,2913.1,2912.2,13.66659401]
[1769429760487,0.002,2913.1,2912.3,12.86130252]
[1769429760687,0.002,2913.1,2912.6,11.35640156]
[1769429760908,0.002,2913.1,2912.4,0.03107037]
[1769429761111,0.002,2913.1,2912.6,0.03107037]
[1769429761409,0.002,2913.1,2912.6,12.03394485]
[1769429761605,0.002,2913.1,2912.6,13.24044637]
[1769429761770,0.020368,2913.8,2913.0,0.03107037]
[1769429761974,11.49114875,2914.3,2912.6,1.23757189]
[1769429761975,0.0028,2914.3,2913.2,12.00287448]
[1769429762297,11.49114875,2914.3,2912.9,12.00287448]
[1769429762467,11.49114875,2914.3,2912.9,0.85823268]
[1769429762661,11.48834875,2914.1,2912.9,1.28611072]
[1769429762867,1.14911488,2914.2,2912.9,13.2889852]
[1769429763189,1.73527629,2916.8,2913.1,12.00287448]
[1769429763367,0.03107037,2916.0,2914.4,12.00287448]
[1769429763568,0.03107037,2916.0,2913.2,0.87042736]
[1769429763569,11.51941912,2915.3,2913.5,12.00287448]
[1769429763767,14.02905714,2915.3,2913.5,12.00287448]
[1769429764096,11.51941912,2915.1,2913.5,9.33577124]
[1769429764297,11.48834875,2915.1,2913.5,9.33577124]
[1769429764483,11.48834875,2915.1,2913.6,0.85804503]
[1769429764690,11.48834875,2915.1,2913.6,12.86091951]
[1769429765762,1.40290571,2915.2,2913.6,12.86091951]
[1769429765966,11.48834875,2915.5,2913.8,12.00287448]
[1769429766606,11.48834875,2915.5,2913.9,0.85795669]
[1769429766977,11.48834875,2915.5,2914.0,12.00287448]
[1769429767705,12.3458595,2915.5,2913.7,0.81498809]
[1769429767874,12.3458595,2915.5,2913.1,0.03107037]
[1769429767875,11.51941912,2915.3,2913.4,0.85808347]
[1769429768064,11.48834875,2915.3,2913.5,0.06539334]
[1769429768267,11.48834875,2915.3,2913.5,0.03432297]
[1769429768465,11.48834875,2915.3,2913.5,0.06539334]
[1769429768668,11.48834875,2915.1,2913.5,0.06539334]
[1769429768999,11.48834875,2914.9,2913.5,0.03432297]
[1769429769214,11.48834875,2914.9,2913.4,0.03432415]
[1769429770409,11.48834875,2914.9,2913.1,0.03432769]
[1769429770584,11.48834875,2914.9,2913.0,0.85820301]
[1769429770784,11.48834875,2914.7,2913.1,0.03432769]
[1769429771101,11.48834875,2914.5,2913.1,0.03432769]
[1769429772003,11.48834875,2914.5,2912.9,0.06540041]
[1769429772208,11.48834875,2914.5,2913.1,0.03432769]
[1769429772808,11.48834875,2914.3,2912.8,0.03433122]
[1769429773012,11.48834875,2914.3,2912.9,0.03433004]
[1769429773179,11.48834875,2914.1,2912.9,0.03433004]
[1769429773882,11.48834875,2914.1,2912.7,0.0343324]
[1769429774799,11.48834875,2913.9,2912.6,0.03433358]
[1769429775005,11.48834875,2913.9,2912.4,0.03107037]
[1769429775006,11.48834875,2913.9,2912.8,0.03433122]
[1769429776110,11.48834875,2913.9,2913.1,0.001]
[1769429776405,11.48834875,2913.7,2912.8,0.03433122]
[1769429777418,1.14883487,2913.8,2912.8,0.03433122]
[1769429778119,12.62345292,2913.8,2912.8,0.03433122]
[1769429778687,13.48145274,2913.8,2912.5,0.03433476]
[1769429778995,13.48852679,2913.6,2912.3,0.03433712]
[1769429779202,13.48852679,2913.6,2912.6,0.03433358]
[1769429779384,13.48852679,2913.6,2912.1,0.89280995]
[1769429779579,13.48852679,2913.6,2912.1,0.03433948]
[1769429780115,13.48852679,2913.6,2912.1,0.89280658]
[1769429780310,12.63046989,2913.4,2912.1,1.32861819]
[1769429780529,12.63046989,2913.4,2912.1,0.47013685]
[1769429781304,13.48858738,2913.4,2912.0,0.03434065]
[1769429782402,13.48858738,2913.4,2911.8,0.89291827]
[1769429782809,13.48858738,2913.4,2911.6,0.001]
[1769429783031,12.63046989,2913.2,2911.6,0.001]
[1769429783234,13.48869165,2913.0,2911.6,0.001]
[1769429783434,12.63046989,2912.8,2911.6,0.001]
[1769429783940,12.63046989,2912.4,2910.3,12.11706162]
[1769429784264,2.853595,2912.3,2910.4,0.03435953]
[1769429784542,12.63046989,2912.0,2910.4,0.03435953]
[1769429784742,12.63046989,2911.8,2910.4,0.03435953]
[1769429784917,12.63046989,2911.6,2910.1,0.03436308]
[1769429785112,12.63046989,2911.6,2910.1,0.89342335]
[1769429785312,13.48911047,2911.6,2910.1,0.03436308]
[1769429785903,13.48911047,2911.6,2910.0,0.03536426]
[1769429786101,12.63046989,2911.4,2910.0,0.03536426]
[1769429786342,12.63046989,2911.4,2910.0,0.89446807]
[1769429786640,12.63046989,2911.4,2910.0,0.03536426]
[1769429787440,13.48917097,2911.4,2910.0,0.03536426]
[1769429788253,12.63046989,2911.4,2910.0,0.89446376]
[1769429788441,14.15581236,2911.3,2910.0,0.03536426]